{"text_format":"1","workbook":"xlsx","n_sheets":3,"sheets":["SCHEDA SINGOLO","1-Elenco partecipanti","2-SCHEDA GRUPPI"],"not_rendered":{"charts":0,"images":1,"macros":1,"external_links":0,"defined_names":3,"comments":0,"pivot_tables":0},"unopened":[],"bounds":{"document_bytes":16777216,"sheet_cells":100000,"rows_first":2000,"rows_last":500,"rows_between":2000,"halvings":0,"cell_chars":16384,"cell_head_chars":4096},"cells_cut":0,"cells_raw":0,"read":"whole","date_system":"1900"}

{"sheet":"SCHEDA SINGOLO","index":0,"n_rows":79,"n_cols":12,"rows_kept":79,"cut":false,"hidden":false,"merged":[[25,10,25,11],[24,8,24,11],[4,1,4,13],[29,8,29,9],[28,8,28,9],[27,8,27,9],[26,8,26,9],[25,8,25,9],[26,10,26,11],[27,10,27,11],[28,10,28,11],[29,10,29,11],[12,9,12,13],[7,1,7,3],[10,2,10,13],[52,4,52,13],[53,2,53,4],[53,6,53,10],[53,12,53,13],[54,9,54,13],[42,1,42,13],[41,1,41,13],[43,1,43,13],[51,4,51,13],[46,1,46,3],[50,4,50,13],[48,1,48,13],[11,2,11,4],[18,1,18,6],[9,2,9,7],[9,9,9,13],[11,12,11,13],[11,6,11,10],[13,1,13,6],[13,7,13,13],[12,2,12,4],[12,6,12,7],[40,1,40,13],[39,1,39,7],[36,1,36,3],[31,1,31,13],[32,1,32,13],[33,1,33,13],[39,8,39,13],[38,1,38,3],[38,6,38,13],[34,1,34,13],[54,2,54,6],[55,1,55,7],[55,8,55,13],[78,1,83,13],[65,1,66,13],[62,1,63,13],[69,1,69,13],[71,1,71,4],[71,10,71,13],[73,1,73,4],[67,1,67,13],[68,1,68,13],[58,1,60,13]]}
[]
[null,null,null,null,null,null,null,null,null,"SCHEDA DI ISCRIZIONE"]
[null,null,null,null,null,null,null,null,null,"Singolo iscritto"]
[]
[null,"La scheda, debitamente compilata, dovrà essere inviata al più presto solo ed esclusivamente alla Segreteria Organizzativa del Congresso, Momeda Eventi S.r.l., via e-mail (CongressoAttuari2018@momedaeventi.com), con allegata copia del bonifico effettuato e il presente file excel."]
[null,"IN AZZURRO I CAMPI DA COMPILARE"]
[]
[null,"INFORMAZIONI PARTECIPANTE"]
[]
[null,"NOME",null,null,null,null,null,null,"COGNOME"]
[null,"INDIRIZZO"]
[null,"CAP",null,null,null,"CITTA'",null,null,null,null,null,"PROV."]
[null,"TELEFONO",null,null,null,"FAX",null,null,"E-MAIL"]
[null,"Azienda/Ente/Associazione/Studio Professionale "]
[]
[null,"Assicuro la mia partecipazione alla seduta inaugurale (pomeriggio del 21 novembre 2018)"]
[]
[]
[null,"QUOTA DI ISCRIZIONE IVA INCLUSA (indicare tipo quota)"]
[]
[null,null,null,260,"(1)","Quota partecipanti 'base'"]
[null,null,null,205,"(1)","Quota partecipanti per iscrizioni prima del 31 luglio 2018"]
[null,null,null,170,"(1)","Quota under 30(*)"]
[null,null,null,120,"(1)","Quota studenti e dottorandi di ricerca(**)"]
[null,null,null,null,null,null,null,null,"ACCOMPAGNATORI"]
[null,null,null,"numero accompagnatori (quota € 145,00(2))",null,null,null,null,"Nome",null,"Cognome"]
[null,null,null,null,null,null,null,1]
[null,null,null,null,null,null,null,2]
[null,null,null,null,null,null,null,3]
[null,null,null,null,null,null,null,4]
[]
[null,"(1)La quota dà diritto alla partecipazione a tutte le Sessioni Plenarie e Parallele, al Cocktail di Benvenuto, alla Cena di Gala del Congresso, ai Lunch e Coffee Break, al Materiale del Congresso."]
[null,"(*) Giovani iscritti o non iscritti all’Albo nazionale degli Attuari che al 30.06.2018 non hanno ancora compiuto 30 anni di età ."]
[null,"(**) Solo studenti di lauree magistrali che consentono l’accesso all’Esame di Stato di Attuario e dottorandi di ricerca in materie attinenti la professione di Attuario."]
[null,"(2)La quota dà diritto al Cocktail di Benvenuto e alla Cena di Gala del Congresso. "]
[]
[null,"MODALITA' DI PAGAMENTO"]
[]
[null,"Effettuo il versamento di",null,null,null,{"$f":"+SUMIF(C21:C24,\"X\",D21:D24)+145*C26","v":0},"sul c/c bancario IT88F0100503240000000021725 (SWIFT: BNLIITRR) presso BNL, intestato a S.I.A. S.r.l."]
[null,"Il CRO (codice di riferimento operazione) del bonifico effettuato è:"]
[null,"Nel caso che il bonifico venga effettuato per un solo partecipante precisarne il nome e cognome nella Causale di pagamento. "]
[null,"Nel caso di unico bonifico per 2 o più partecipanti si richiede comunque la compilazione di più schede di iscrizione, una per ogni partecipante, "]
[null,"specificando nella causale del bonifico i nominativi dei partecipanti cui il bonifico si riferisce."]
[null,"Inviare copia del bonifico effettuato a CongressoAttuari2018@momedaeventi.com."]
[]
[]
[null,"DATI PER FATTURAZIONE"]
[]
[null,"Si prega di compilare tutti i campi della presente sezione in quanto indispensabili per la fatturazione, attività che la S.I.A. ha l'obbligo di effettuare.\nNel caso in cui l'iscritto non sia titolare di partita IVA si prega di ripetere il Codice Fiscale nel relativo campo."]
[]
[null,"INTESTAZIONE FATTURA"]
[null,null,null,null,"Nome e Cognome"]
[null,"INDIRIZZO (Via / Piazza)"]
[null,"CAP",null,null,null,"CITTA'",null,null,null,null,null,"PROV."]
[null,"CODICE FISCALE",null,null,null,null,null,"PARTITA IVA N."]
[null,"LA FATTURA VA INVIATA VIA E-MAIL A (indicare indirizzo e-mail):"]
[]
[]
[null,{"$f":"+IF(AND(C10<>0,J10<>0,C11<>0,C12<>0,G12<>0,M12<>0,C13<>0,J13<>0,H14<>0,J16<>0,F39<>0,I40<>0,E51<>0,E53<>0,C54<>0,G54<>0,M54<>0,C55<>0,J55<>0,I56<>0),\"BENE!! Ora puoi stampare la scheda di iscrizione, firmarla e inviarla via mail assieme alla copia del bonifico e al presente file excel\",\"Sei sicuro di aver compilato tutti i campi?\")","v":"Sei sicuro di aver compilato tutti i campi?"}]
[]
[]
[]
[null,"L'adesione a partecipare al XII Congresso comporta l'automatica autorizzazione a riprese fotografiche e alla conseguente pubblicazione sul sito istituzionale che potrà avvalersi di terze società per la pubblicazione su internet."]
[]
[]
[null,"Per qualsiasi ulteriore informazione riguardante il Congresso, dal momento dell’iscrizione fino allo svolgimento dello stesso, si prega rivolgersi esclusivamente e direttamente a:"]
[]
[null,"Momeda Eventi S.r.l"]
[null,"n. tel. 051.5876729"]
[null,"indirizzo e-mail: CongressoAttuari2018@momedaeventi.com"]
[]
[null,"Data ",null,null,null,null,null,null,null,null,"FIRMA"]
[]
[]
[]
[]
[]
[]
[null,"Informativa ex Legge n. 675/1996 – Tutela della Privacy \nS.I.A. s.r.l, con sede in Roma in Viale delle Milizie n. 1, e Momeda Eventi S.r.l., con sede in Bologna in Via San Felice n. 6, titolari del trattamento, La informano che: \n1. il trattamento, effettuato con strumenti automatizzati e manuali, ha per finalità l’iscrizione e la partecipazione al Congresso, organizzato da S.I.A. s.r.l., che ha affidato la segreteria organizzativa alla società Momeda Eventi S.r.l.; \n2. il conferimento dei dati, di cui non è prevista la diffusione, ma solo la comunicazione ai professionisti e alle aziende che per nostro conto svolgono le attività di gestione amministrativa, contabile e fiscale, è obbligatorio e in sua mancanza non potremo procedere ad iscriverLa al Congresso. \nLei potrà rivolgersi al titolare del trattamento per far valere i Suoi diritti così come previsto dall'articolo 13 della Legge n. 675/1996; in particolare potrà chiedere conferma dell’esistenza dei dati che possono riguardarLa, ottenerne la cancellazione per motivi legittimi, l’aggiornamento e la rettifica.\n"]

{"sheet":"1-Elenco partecipanti","index":1,"n_rows":95,"n_cols":8,"rows_kept":95,"cut":false,"hidden":false,"merged":[[68,1,68,12],[69,1,69,12],[74,2,75,2],[0,0,0,7],[54,1,54,7],[66,1,66,12],[67,1,67,12],[74,1,75,1]]}
["ALLEGATO ALLA SCHEDA DI ISCRIZIONE DEI GRUPPI - ELENCO DEI PARTECIPANTI AL XII CONGRESSO NAZIONALE DEGLI ATTUARI (21-22-23 Novembre 2018)"]
["IN AZZURRO I CAMPI DA COMPILARE"]
["ID","Nome","Cognome","E-mail personale","P=Partecipante A=Accompagnatore","Tipo quota di iscrizione*","Importo quota (lordo IVA)","Partecipazione  alla seduta inaugurale (S/N)"]
[1,null,null,null,null,null,{"$f":"IF(E4=\"A\",$B$65,IFERROR(VLOOKUP(F4,$E$61:$F$64,2,0),\"\"))","v":""}]
[{"$f":"+A4+1","v":2},null,null,null,null,null,{"$f":"IF(E5=\"A\",$B$65,IFERROR(VLOOKUP(F5,$E$61:$F$64,2,0),\"\"))","v":""}]
[{"$f":"+A5+1","v":3},null,null,null,null,null,""]
[4,null,null,null,null,null,""]
[5,null,null,null,null,null,""]
[6,null,null,null,null,null,""]
[7,null,null,null,null,null,""]
[8,null,null,null,null,null,""]
[9,null,null,null,null,null,""]
[10,null,null,null,null,null,""]
[11,null,null,null,null,null,""]
[12,null,null,null,null,null,""]
[13,null,null,null,null,null,""]
[14,null,null,null,null,null,""]
[15,null,null,null,null,null,""]
[16,null,null,null,null,null,""]
[17,null,null,null,null,null,""]
[18,null,null,null,null,null,""]
[19,null,null,null,null,null,""]
[20,null,null,null,null,null,""]
[21,null,null,null,null,null,""]
[22,null,null,null,null,null,""]
[{"$f":"+A25+1","v":23},null,null,null,null,null,""]
[24,null,null,null,null,null,""]
[25,null,null,null,null,null,""]
[26,null,null,null,null,null,""]
[27,null,null,null,null,null,""]
[28,null,null,null,null,null,""]
[29,null,null,null,null,null,""]
[30,null,null,null,null,null,""]
[31,null,null,null,null,null,""]
[32,null,null,null,null,null,""]
[33,null,null,null,null,null,""]
[34,null,null,null,null,null,""]
[35,null,null,null,null,null,""]
[36,null,null,null,null,null,""]
[37,null,null,null,null,null,""]
[38,null,null,null,null,null,""]
[39,null,null,null,null,null,""]
[40,null,null,null,null,null,""]
[{"$f":"+A43+1","v":41},null,null,null,null,null,""]
[42,null,null,null,null,null,""]
[43,null,null,null,null,null,""]
[44,null,null,null,null,null,""]
[45,null,null,null,null,null,""]
["T",null,{"$f":"+COUNTA(C4:C48)","v":0},null,null,null,{"$f":"SUM(G4:G48)","v":0},{"$f":"+COUNTIF($H$4:$H$48,\"S\")","v":0}]
[null,"di cui accompagnatori",{"$f":"+COUNTIF(E4:E48,\"A\")","v":0}]
[]
[]
[]
[]
[null,"* indicare la lettera (A, B, C, D, E o F) corrispondente alla tipologia di quota indicata nel Riepilogo Quote riportato successivamente"]
[]
[]
[]
[null,"RIEPILOGO QUOTE (iva inclusa)"]
[]
["A",260,"Quota partecipanti 'base'",null,"A. Quota 'base'",{"$f":"+B61","v":260}]
["B",205,"Quota partecipanti per iscrizioni prima del 31 luglio 2018",null,"B. Quota ante 31.07",{"$f":"+B62","v":205}]
["C",170,"Quota under 30(*)",null,"C. Quota under 30",170]
["D",120,"Quota studenti e dottorandi di ricerca(**)",null,"D. Quota studenti",120]
["E",145,"Quota accompagnatori"]
[]
[null,"(1)La quota dà diritto alla partecipazione a tutte le Sessioni Plenarie e Parallele, al Cocktail di Benvenuto, alla Cena di Gala del Congresso, ai Lunch e Coffee Break, al Materiale del Congresso."]
[null,"(*) Giovani iscritti o non iscritti all’Albo nazionale degli Attuari che al 30.06.2018 non hanno ancora compiuto 30 anni di età ."]
[null,"(**) Solo studenti di lauree magistrali che consentono l’accesso all’Esame di Stato di Attuario e dottorandi di ricerca in materie attinenti la professione di Attuario."]
[null,"(2)La quota dà diritto al Cocktail di Benvenuto e alla Cena di Gala del Congresso. "]
[]
[]
[null,"AGEVOLAZIONE GRUPPI"]
[]
[null,"Numero di partecipanti iscritti","Sconto"]
[]
[null,10,0.02]
[null,{"$f":"+B77+1","v":11},{"$f":"+C77+1%","v":0.03}]
[null,{"$f":"+B78+1","v":12},{"$f":"+C78+1%","v":0.04}]
[null,13,0.05]
[null,14,6.0000000000000005E-2]
[null,15,7.0000000000000007E-2]
[null,16,0.08]
[null,17,0.09]
[null,18,9.9999999999999992E-2]
[null,19,0.10999999999999999]
[null,20,0.11999999999999998]
[null,21,0.12999999999999998]
[null,22,0.13999999999999999]
[null,23,0.15]
[null,24,0.16]
[null,25,0.17]
[null,26,0.18000000000000002]
[null,{"$f":"+B93+1","v":27},{"$f":"+C93+1%","v":0.19000000000000003}]
[null,28,0.20000000000000004]

{"sheet":"2-SCHEDA GRUPPI","index":2,"n_rows":75,"n_cols":12,"rows_kept":75,"cut":false,"hidden":false,"merged":[[74,1,79,13],[45,6,45,10],[45,2,45,4],[68,1,68,4],[62,1,62,13],[63,1,63,13],[66,1,66,4],[66,10,66,13],[59,1,60,13],[61,1,61,13],[47,8,47,13],[56,1,57,13],[52,1,54,13],[33,1,33,7],[33,8,33,13],[34,1,34,13],[35,1,35,13],[46,2,46,6],[46,9,46,13],[42,4,42,13],[45,12,45,13],[44,4,44,13],[38,1,38,3],[43,4,43,13],[40,1,40,13],[4,1,5,13],[8,1,8,3],[10,1,10,6],[10,7,10,13],[47,1,47,7],[16,1,16,3],[32,1,32,3],[32,6,32,13],[13,2,13,4],[13,6,13,7],[11,2,11,13],[12,2,12,4],[12,6,12,9],[12,11,12,13],[28,2,28,12],[13,9,13,13]]}
[]
[null,null,null,null,null,null,null,null,null,"SCHEDA DI ISCRIZIONE"]
[null,null,null,null,null,null,null,null,null,"Gruppi"]
[]
[null,"La scheda, debitamente compilata, dovrà essere inviata al più presto solo ed esclusivamente alla Segreteria Organizzativa del Congresso, Momeda Eventi S.r.l., via e-mail (CongressoAttuari2018@momedaeventi.com), con allegata copia del bonifico effettuato e il presente file excel."]
[]
[null,"IN AZZURRO I CAMPI DA COMPILARE"]
[]
[null,"INFORMAZIONI GENERALI"]
[]
[null,"AZIENDA/ENTE/ASSOCIAZIONE/STUDIO PROFESSIONALE"]
[null,"INDIRIZZO"]
[null,"CAP",null,null,null,"CITTA'",null,null,null,null,"PROV."]
[null,"TELEFONO",null,null,null,"FAX",null,null,"E-MAIL"]
[]
[]
[null,"MODALITA' DI PAGAMENTO"]
[]
[null,"SI PREGA DI COMPILARE L'ELENCO PARTECIPANTI PER LA DETERMINAZIONE DELL'IMPORTO DA CORRISPONDERE"]
[]
[null,"(a)","TOTALE NUMERO ISCRITTI",null,null,null,null,{"$f":"+'1-Elenco partecipanti'!C49-'1-Elenco partecipanti'!C50","v":0}]
[null,"(b)","AMMONTARE COMPLESSIVO ANTE SCONTO",null,null,null,null,{"$f":"+'1-Elenco partecipanti'!G49","v":0}]
[null,"(c )",null,null,null,"SCONTO %",null,{"$f":"+IF(H21<10,0%,IF(H21>='1-Elenco partecipanti'!$B$95,'1-Elenco partecipanti'!$C$95,VLOOKUP(H21,'1-Elenco partecipanti'!$B$77:$C$95,2,0)))","v":0}]
[null,"(d)",null,null,null,"SCONTO €",null,{"$f":"+H23*H22","v":0}]
[null,"(e)","VERSAMENTO (POST SCONTO) iva inclusa",null,null,null,null,{"$f":"+H22-H24","v":0}]
[]
[null,"(a)","Numero complessivo di iscrizioni esclusi eventuali accompagnatori"]
[null,"(b)","Totale € dell'elenco dei partecipanti"]
[null,"(c )","Percentuale di sconto da individuare nella tabella 'Riepilogo agevolazione gruppi' sulla base del numero di partecipanti iscritti"]
[null,"(d)","(b) x (c )"]
[null,"(e)","(b) - (d)"]
[]
[null,"Effettuo il versamento di",null,null,null,{"$f":"+H25","v":0},"sul c/c bancario IT88F0100503240000000021725 (SWIFT: BNLIITRR) presso BNL, intestato a S.I.A. S.r.l."]
[null,"Il CRO (codice di riferimento operazione) del bonifico effettuato è:"]
[null,"Specificare nella causale del pagamento il nome dell'Azienda/Ente/Associazione/Studio Professionale che effettua l'iscrizione."]
[null,"Inviare copia del bonifico effettuato a CongressoAttuari2018@momedaeventi.com, assieme all'elenco partecipanti."]
[]
[]
[null,"DATI PER FATTURAZIONE"]
[]
[null,"Si prega di compilare tutti i campi della presente sezione in quanto indispensabili per la fatturazione, attività che la S.I.A. ha l'obbligo di effettuare.\nIn particolare si richiede di inserire i campi 'Codice Fiscale' e 'Partita IVA' anche se coincidenti."]
[]
[null,"INTESTAZIONE FATTURA"]
[null,null,null,null,"Azienda / Ente / Associazione / Studio Professionale"]
[null,"INDIRIZZO (Via / Piazza)"]
[null,"CAP",null,null,null,"CITTA'",null,null,null,null,null,"PROV."]
[null,"CODICE FISCALE",null,null,null,null,null,"PARTITA IVA N."]
[null,"LA FATTURA VA INVIATA VIA E-MAIL A (indicare indirizzo e-mail):"]
[]
[null,"La Fattura deve essere in regime di Split Payment?"]
[]
[]
[null,{"$f":"+IF(AND(H11<>0,C12<>0,C13<>0,G13<>0,L13<>0,C14<>0,J14<>0,F33<>0,I34<>0,E43<>0,E45<>0,C46<>0,G46<>0,M46<>0,C47<>0,J47<>0,I48<>0,H50<>0),\"BENE!! Ora puoi stampare la scheda di iscrizione, firmarla e inviarla via mail assieme alla copia del bonifico e il presente file excel\",\"Sei sicuro di aver compilato tutti i campi?\")","v":"Sei sicuro di aver compilato tutti i campi?"}]
[]
[]
[]
[null,"L'adesione a partecipare al XII Congresso comporta l'automatica autorizzazione a riprese fotografiche e alla conseguente pubblicazione sul sito istituzionale che potrà avvalersi di terze società per la pubblicazione su internet."]
[]
[]
[null,"Per qualsiasi ulteriore informazione riguardante il Congresso, dal momento dell’iscrizione fino allo svolgimento dello stesso, si prega rivolgersi esclusivamente e direttamente a:"]
[]
[null,"Momeda Eventi S.r.l"]
[null,"n. tel. 051.5876729"]
[null,"indirizzo e-mail: CongressoAttuari2018@momedaeventi.com"]
[]
[]
[null,"Data ",null,null,null,null,null,null,null,null,"FIRMA"]
[]
[]
[]
[]
[]
[]
[]
[null,"Informativa ex Legge n. 675/1996 – Tutela della Privacy \nS.I.A. s.r.l, con sede in Roma in Viale delle Milizie n. 1, e Momeda Eventi S.r.l., con sede in Bologna in Via San Felice n. 6, titolari del trattamento, La informano che: \n1. il trattamento, effettuato con strumenti automatizzati e manuali, ha per finalità l’iscrizione e la partecipazione al Congresso, organizzato da S.I.A. s.r.l., che ha affidato la segreteria organizzativa alla società Momeda Eventi S.r.l.; \n2. il conferimento dei dati, di cui non è prevista la diffusione, ma solo la comunicazione ai professionisti e alle aziende che per nostro conto svolgono le attività di gestione amministrativa, contabile e fiscale, è obbligatorio e in sua mancanza non potremo procedere ad iscriverLa al Congresso. \nLei potrà rivolgersi al titolare del trattamento per far valere i Suoi diritti così come previsto dall'articolo 13 della Legge n. 675/1996; in particolare potrà chiedere conferma dell’esistenza dei dati che possono riguardarLa, ottenerne la cancellazione per motivi legittimi, l’aggiornamento e la rettifica.\n"]